[Event "Late-Titled-Tuesday-Blitz-July-09-2024"]
[Site "Chess.com"]
[Date "2024.07.09"]
[Round "11"]
[White "Meri-Arabidze"]
[Black "ReinisUz"]
[Result "1-0"]
[WhiteElo "2686"]
[BlackElo "2564"]
[TimeControl "180+1"]
[EndTime "16:03:14 PDT"]
[Termination "Meri-Arabidze won by resignation"]

1. d4 {[%clk 0:03:00.9]} 1... d5 {[%clk 0:02:59.6]} 2. c4 {[%clk 0:03:01.3]}
2... c6 {[%clk 0:02:59.9]} 3. Nf3 {[%clk 0:03:00.5]} 3... Nf6 {[%clk 0:03:00.2]}
4. g3 {[%clk 0:03:00.9]} 4... e6 {[%clk 0:03:00.5]} 5. Bg2 {[%clk 0:03:00.1]}
5... Be7 {[%clk 0:03:01]} 6. O-O {[%clk 0:02:59.8]} 6... Nbd7 {[%clk 0:03:01.6]}
7. b3 {[%clk 0:02:59.8]} 7... O-O {[%clk 0:03:01.8]} 8. Nc3 {[%clk 0:02:59.3]}
8... b6 {[%clk 0:03:02.1]} 9. Qc2 {[%clk 0:02:58.5]} 9... Bb7 {[%clk 0:03:02.3]}
10. e4 {[%clk 0:02:58.4]} 10... dxe4 {[%clk 0:03:02.3]} 11. Nxe4 {[%clk
0:02:59]} 11... c5 {[%clk 0:03:00.6]} 12. Nxf6+ {[%clk 0:02:53.5]} 12... Bxf6
{[%clk 0:02:59.4]} 13. Ng5 {[%clk 0:02:09.3]} 13... Bxg5 {[%clk 0:02:47.8]} 14.
Bxb7 {[%clk 0:02:09]} 14... Rb8 {[%clk 0:02:48.1]} 15. dxc5 {[%clk 0:02:05]}
15... Rxb7 {[%clk 0:02:28]} 16. c6 {[%clk 0:02:03.2]} 16... Rc7 {[%clk
0:02:28.3]} 17. cxd7 {[%clk 0:02:02.2]} 17... Rxd7 {[%clk 0:02:28.4]} 18. Bxg5
{[%clk 0:01:54.9]} 18... Qxg5 {[%clk 0:02:29.3]} 19. Rfd1 {[%clk 0:01:52]} 19...
Rfd8 {[%clk 0:02:28.7]} 20. Rxd7 {[%clk 0:01:51.5]} 20... Rxd7 {[%clk
0:02:29.6]} 21. Rd1 {[%clk 0:01:51.7]} 21... Qd8 {[%clk 0:02:27.9]} 22. Rxd7
{[%clk 0:01:50.9]} 22... Qxd7 {[%clk 0:02:28.8]} 23. b4 {[%clk 0:01:47.5]} 23...
g6 {[%clk 0:02:21.7]} 24. h4 {[%clk 0:01:47.2]} 24... e5 {[%clk 0:02:20.8]} 25.
c5 {[%clk 0:01:43.4]} 25... Qc6 {[%clk 0:02:14.2]} 26. Qc3 {[%clk 0:01:20.6]}
26... e4 {[%clk 0:02:04.6]} 27. Qe5 {[%clk 0:01:15.7]} 27... bxc5 {[%clk
0:01:46.9]} 28. bxc5 {[%clk 0:01:16.6]} 28... a6 {[%clk 0:01:47.1]} 29. h5
{[%clk 0:01:12.4]} 29... gxh5 {[%clk 0:01:41.3]} 30. Qxh5 {[%clk 0:01:13.3]}
30... h6 {[%clk 0:01:36.5]} 31. Qe5 {[%clk 0:01:12]} 31... Kf8 {[%clk
0:01:34.5]} 32. Kh2 {[%clk 0:01:03.7]} 32... Qe6 {[%clk 0:01:27.5]} 33. Qxe6
{[%clk 0:00:42.1]} 33... fxe6 {[%clk 0:01:28.4]} 34. Kh3 {[%clk 0:00:42.8]}
34... Ke7 {[%clk 0:01:28.6]} 35. Kh4 {[%clk 0:00:43.2]} 35... Kd7 {[%clk
0:01:29.2]} 36. Kh5 {[%clk 0:00:43.6]} 36... Kc6 {[%clk 0:01:29.9]} 37. Kxh6
{[%clk 0:00:44.1]} 37... Kxc5 {[%clk 0:01:30.6]} 38. g4 {[%clk 0:00:44.7]} 38...
Kd5 {[%clk 0:01:30.6]} 39. g5 {[%clk 0:00:45.1]} 1-0

[Event "Late-Titled-Tuesday-Blitz-July-09-2024"]
[Site "Chess.com"]
[Date "2024.07.09"]
[Round "11"]
[White "KVAIDAN"]
[Black "malakismayil"]
[Result "0-1"]
[WhiteElo "2381"]
[BlackElo "2537"]
[TimeControl "180+1"]
[EndTime "16:03:18 PDT"]
[Termination "malakismayil won by checkmate"]

1. f4 {[%clk 0:02:55.3]} 1... d5 {[%clk 0:02:59.5]} 2. Nf3 {[%clk 0:02:55.5]}
2... c5 {[%clk 0:02:57.6]} 3. e3 {[%clk 0:02:55.3]} 3... Nf6 {[%clk 0:02:57.8]}
4. b3 {[%clk 0:02:55.1]} 4... e6 {[%clk 0:02:57.9]} 5. Bb2 {[%clk 0:02:55.3]}
5... Nc6 {[%clk 0:02:58.4]} 6. Bb5 {[%clk 0:02:54.4]} 6... Be7 {[%clk
0:02:57.2]} 7. O-O {[%clk 0:02:54.3]} 7... O-O {[%clk 0:02:57.3]} 8. Bxc6 {[%clk
0:02:53.4]} 8... bxc6 {[%clk 0:02:56.8]} 9. Ne5 {[%clk 0:02:52.4]} 9... Qc7
{[%clk 0:02:56.8]} 10. Rf3 {[%clk 0:02:51.5]} 10... Rd8 {[%clk 0:02:45.1]} 11.
Rg3 {[%clk 0:02:50.8]} 11... d4 {[%clk 0:02:44.7]} 12. Na3 {[%clk 0:02:46.8]}
12... Ne4 {[%clk 0:02:39.5]} 13. Rh3 {[%clk 0:02:45.2]} 13... Nf6 {[%clk
0:02:30.1]} 14. Nac4 {[%clk 0:02:42.5]} 14... Ba6 {[%clk 0:02:28.7]} 15. Rg3
{[%clk 0:02:38]} 15... Bxc4 {[%clk 0:02:27.1]} 16. bxc4 {[%clk 0:02:37.7]} 16...
Rab8 {[%clk 0:02:26.7]} 17. Rb1 {[%clk 0:02:27.3]} 17... Rb7 {[%clk 0:02:09.4]}
18. Ng4 {[%clk 0:02:25.9]} 18... Rdb8 {[%clk 0:02:00]} 19. Qc1 {[%clk
0:02:16.7]} 19... Ne4 {[%clk 0:01:24.9]} 20. Rh3 {[%clk 0:02:12]} 20... Nxd2
{[%clk 0:01:24.1]} 21. Qxd2 {[%clk 0:02:01.6]} 21... Rxb2 {[%clk 0:01:22.9]} 22.
Rf1 {[%clk 0:02:01.5]} 22... Rd8 {[%clk 0:01:15]} 23. Qd3 {[%clk 0:01:48.5]}
23... f5 {[%clk 0:01:09.6]} 24. Ne5 {[%clk 0:01:48.3]} 24... Bf6 {[%clk
0:01:08.8]} 25. Qa3 {[%clk 0:01:45.5]} 25... Rxc2 {[%clk 0:01:02.3]} 26. Qxc5
{[%clk 0:01:44]} 26... Bxe5 {[%clk 0:01:02.6]} 27. fxe5 {[%clk 0:01:43.9]} 27...
d3 {[%clk 0:01:03]} 28. e4 {[%clk 0:01:32.7]} 28... d2 {[%clk 0:01:01.2]} 29.
Qe3 {[%clk 0:01:33]} 29... d1=Q {[%clk 0:00:59.6]} 30. Rf3 {[%clk 0:01:26.3]}
30... Qd4 {[%clk 0:00:56.9]} 31. exf5 {[%clk 0:01:25.4]} 31... Qxe3+ {[%clk
0:00:56.3]} 32. Rxe3 {[%clk 0:01:25.6]} 32... Rdd2 {[%clk 0:00:55.1]} 33. Rg3
{[%clk 0:01:22.2]} 33... Qxe5 {[%clk 0:00:54.1]} 34. f6 {[%clk 0:01:19.3]} 34...
Qxg3 {[%clk 0:00:51.7]} 35. hxg3 {[%clk 0:01:18.4]} 35... Rxg2+ {[%clk
0:00:50.9]} 36. Kh1 {[%clk 0:01:19.3]} 36... Rh2+ {[%clk 0:00:51.2]} 37. Kg1
{[%clk 0:01:17]} 37... Rcg2# {[%clk 0:00:52.1]} 0-1

[Event "Late-Titled-Tuesday-Blitz-July-09-2024"]
[Site "Chess.com"]
[Date "2024.07.09"]
[Round "11"]
[White "NovakRatko"]
[Black "Redzishchess"]
[Result "0-1"]
[WhiteElo "2339"]
[BlackElo "2454"]
[TimeControl "180+1"]
[EndTime "16:03:27 PDT"]
[Termination "Redzishchess won by resignation"]

1. d4 {[%clk 0:02:54.8]} 1... Nf6 {[%clk 0:03:00.1]} 2. c4 {[%clk 0:02:55.1]}
2... g6 {[%clk 0:03:00.7]} 3. Nc3 {[%clk 0:02:55.1]} 3... d5 {[%clk 0:03:01.1]}
4. f3 {[%clk 0:02:55.7]} 4... Bg7 {[%clk 0:02:50.4]} 5. e4 {[%clk 0:02:54.8]}
5... dxe4 {[%clk 0:02:46]} 6. fxe4 {[%clk 0:02:55.7]} 6... e5 {[%clk 0:02:37.4]}
7. dxe5 {[%clk 0:02:45.6]} 7... Qxd1+ {[%clk 0:02:36]} 8. Nxd1 {[%clk 0:02:44]}
8... Nxe4 {[%clk 0:02:33.1]} 9. Nf3 {[%clk 0:02:24.4]} 9... Nc6 {[%clk
0:02:33.1]} 10. Bf4 {[%clk 0:02:23.8]} 10... Bg4 {[%clk 0:02:29.2]} 11. Be2
{[%clk 0:02:21.1]} 11... O-O-O {[%clk 0:02:25]} 12. h3 {[%clk 0:02:20.6]} 12...
Bxf3 {[%clk 0:02:09.1]} 13. Bxf3 {[%clk 0:02:18.9]} 13... Nc5 {[%clk 0:02:08.9]}
14. Bxc6 {[%clk 0:02:19.2]} 14... Nd3+ {[%clk 0:02:06.5]} 15. Kf1 {[%clk
0:02:10.1]} 15... Nxf4 {[%clk 0:01:36.3]} 16. Be4 {[%clk 0:02:01.1]} 16... Bxe5
{[%clk 0:01:34.8]} 17. Nc3 {[%clk 0:02:00.1]} 17... f5 {[%clk 0:01:26.8]} 18.
Bf3 {[%clk 0:01:47.2]} 18... Bxc3 {[%clk 0:01:26.9]} 19. bxc3 {[%clk 0:01:45.4]}
19... Rd2 {[%clk 0:01:27.6]} 20. Kg1 {[%clk 0:01:42.1]} 20... Re8 {[%clk
0:01:10.3]} 21. Kh2 {[%clk 0:01:42]} 21... c6 {[%clk 0:00:47.7]} 22. Rhe1 {[%clk
0:01:41.4]} 22... Rxe1 {[%clk 0:00:41.7]} 23. Rxe1 {[%clk 0:01:41.7]} 23... Kd7
{[%clk 0:00:42.3]} 24. Rd1 {[%clk 0:01:39]} 24... Rxd1 {[%clk 0:00:41.7]} 25.
Bxd1 {[%clk 0:01:39.9]} 25... Kd6 {[%clk 0:00:38.3]} 26. Kg3 {[%clk 0:01:36.6]}
26... Ne6 {[%clk 0:00:37.5]} 27. h4 {[%clk 0:01:31.3]} 27... Ke5 {[%clk
0:00:33.5]} 28. Be2 {[%clk 0:01:29.2]} 28... Nc5 {[%clk 0:00:28.2]} 29. Bf3
{[%clk 0:01:26]} 29... Ne4+ {[%clk 0:00:25.8]} 30. Bxe4 {[%clk 0:01:23.9]} 30...
Kxe4 {[%clk 0:00:26.7]} 0-1

[Event "Late-Titled-Tuesday-Blitz-July-09-2024"]
[Site "Chess.com"]
[Date "2024.07.09"]
[Round "11"]
[White "Gzucaritas"]
[Black "simaopdias"]
[Result "0-1"]
[WhiteElo "2060"]
[BlackElo "2186"]
[TimeControl "180+1"]
[EndTime "16:03:36 PDT"]
[Termination "simaopdias won by checkmate"]

1. e4 {[%clk 0:02:58.3]} 1... c5 {[%clk 0:02:57.6]} 2. Nf3 {[%clk 0:02:57.3]}
2... g6 {[%clk 0:02:58.5]} 3. c3 {[%clk 0:02:56.1]} 3... Bg7 {[%clk 0:02:58.1]}
4. d4 {[%clk 0:02:38]} 4... cxd4 {[%clk 0:02:59]} 5. cxd4 {[%clk 0:02:38]} 5...
d5 {[%clk 0:02:59.6]} 6. e5 {[%clk 0:02:38.1]} 6... Nh6 {[%clk 0:02:59.7]} 7.
Bd3 {[%clk 0:02:37.4]} 7... O-O {[%clk 0:03:00.1]} 8. O-O {[%clk 0:02:35.1]}
8... Bg4 {[%clk 0:03:00.5]} 9. h3 {[%clk 0:02:34.6]} 9... Bxf3 {[%clk
0:03:00.7]} 10. Qxf3 {[%clk 0:02:33.7]} 10... Nc6 {[%clk 0:03:01.6]} 11. Be3
{[%clk 0:02:29.9]} 11... f6 {[%clk 0:03:01.6]} 12. Nc3 {[%clk 0:02:12.3]} 12...
e6 {[%clk 0:03:00.9]} 13. exf6 {[%clk 0:01:50]} 13... Qxf6 {[%clk 0:02:59.1]}
14. Qg3 {[%clk 0:01:39.5]} 14... Nf5 {[%clk 0:02:51.7]} 15. Bxf5 {[%clk
0:01:32.1]} 15... gxf5 {[%clk 0:02:52.6]} 16. Qf4 {[%clk 0:01:25.8]} 16... Nxd4
{[%clk 0:02:49.1]} 17. Qxd4 {[%clk 0:01:24]} 17... Qxd4 {[%clk 0:02:48.3]} 18.
Bxd4 {[%clk 0:01:24.5]} 18... Bxd4 {[%clk 0:02:49.2]} 19. Rfe1 {[%clk
0:01:18.4]} 19... Kf7 {[%clk 0:02:43]} 20. Nb5 {[%clk 0:01:17.3]} 20... Bc5
{[%clk 0:02:33.8]} 21. Rac1 {[%clk 0:01:13.9]} 21... Rfc8 {[%clk 0:02:31.3]} 22.
a3 {[%clk 0:01:04.6]} 22... a6 {[%clk 0:02:31.3]} 23. Nc3 {[%clk 0:01:02.4]}
23... Rc6 {[%clk 0:02:30.7]} 24. Re2 {[%clk 0:00:39.2]} 24... Rac8 {[%clk
0:02:30.7]} 25. Rce1 {[%clk 0:00:38.2]} 25... Kf6 {[%clk 0:02:25.8]} 26. b4
{[%clk 0:00:34.6]} 26... Bd4 {[%clk 0:02:24.7]} 27. Nd1 {[%clk 0:00:23.8]} 27...
f4 {[%clk 0:02:16.8]} 28. Kh1 {[%clk 0:00:19.8]} 28... e5 {[%clk 0:02:15.5]} 29.
f3 {[%clk 0:00:19.2]} 29... Rc2 {[%clk 0:02:11.4]} 30. Kh2 {[%clk 0:00:13.4]}
30... h5 {[%clk 0:02:11.4]} 31. h4 {[%clk 0:00:12.7]} 31... Kf5 {[%clk
0:02:08.2]} 32. Kh3 {[%clk 0:00:11.1]} 32... Rxe2 {[%clk 0:01:50.9]} 33. Rxe2
{[%clk 0:00:10.6]} 33... Rc1 {[%clk 0:01:51.8]} 34. Nf2 {[%clk 0:00:09.8]} 34...
Bxf2 {[%clk 0:01:49]} 35. Rxf2 {[%clk 0:00:01.5]} 35... Rh1# {[%clk 0:01:48.7]}
0-1

[Event "Late-Titled-Tuesday-Blitz-July-09-2024"]
[Site "Chess.com"]
[Date "2024.07.09"]
[Round "11"]
[White "Aygehovit1992"]
[Black "mamey78"]
[Result "1-0"]
[WhiteElo "2808"]
[BlackElo "2636"]
[TimeControl "180+1"]
[EndTime "16:03:37 PDT"]
[Termination "Aygehovit1992 won by resignation"]

1. e4 {[%clk 0:02:57.9]} 1... e5 {[%clk 0:03:00.5]} 2. Nf3 {[%clk 0:02:57.2]}
2... Nc6 {[%clk 0:03:01]} 3. Bb5 {[%clk 0:02:56.2]} 3... a6 {[%clk 0:03:00.9]}
4. Ba4 {[%clk 0:02:56.5]} 4... Nf6 {[%clk 0:03:01.5]} 5. O-O {[%clk 0:02:54.9]}
5... Be7 {[%clk 0:03:01.6]} 6. d3 {[%clk 0:02:53.3]} 6... b5 {[%clk 0:03:01]} 7.
Bb3 {[%clk 0:02:53.5]} 7... O-O {[%clk 0:03:01.7]} 8. Nc3 {[%clk 0:02:53.3]}
8... Bb7 {[%clk 0:02:55.2]} 9. a3 {[%clk 0:02:50.1]} 9... d6 {[%clk 0:02:52.2]}
10. Nd5 {[%clk 0:02:33]} 10... Nxd5 {[%clk 0:02:41.2]} 11. Bxd5 {[%clk
0:02:32.5]} 11... Qd7 {[%clk 0:02:40.7]} 12. b4 {[%clk 0:02:24.3]} 12... Rab8
{[%clk 0:02:28.6]} 13. c4 {[%clk 0:02:23.7]} 13... Nd8 {[%clk 0:02:27.6]} 14.
Bxb7 {[%clk 0:02:16.3]} 14... Rxb7 {[%clk 0:02:28.5]} 15. Bd2 {[%clk 0:02:11.7]}
15... f5 {[%clk 0:02:28.3]} 16. Rc1 {[%clk 0:01:56.1]} 16... c6 {[%clk
0:02:03.4]} 17. Qb3 {[%clk 0:01:43.3]} 17... Kh8 {[%clk 0:02:01.9]} 18. cxb5
{[%clk 0:01:32.1]} 18... axb5 {[%clk 0:01:59.1]} 19. Rfe1 {[%clk 0:01:26.5]}
19... Ne6 {[%clk 0:01:48.7]} 20. exf5 {[%clk 0:01:06.7]} 20... Rxf5 {[%clk
0:01:45]} 21. d4 {[%clk 0:01:06.7]} 21... Nxd4 {[%clk 0:01:34.9]} 22. Nxd4
{[%clk 0:01:06.5]} 22... exd4 {[%clk 0:01:35.8]} 23. Qc2 {[%clk 0:00:57.6]}
23... Bh4 {[%clk 0:00:37]} 24. g3 {[%clk 0:00:54.3]} 24... Bf6 {[%clk
0:00:37.6]} 25. Qxf5 {[%clk 0:00:46.1]} 1-0

[Event "Late-Titled-Tuesday-Blitz-July-09-2024"]
[Site "Chess.com"]
[Date "2024.07.09"]
[Round "11"]
[White "FuenfgegenWilly"]
[Black "chessuriel"]
[Result "1-0"]
[WhiteElo "2536"]
[BlackElo "2369"]
[TimeControl "180+1"]
[EndTime "16:03:37 PDT"]
[Termination "FuenfgegenWilly won by resignation"]

1. e4 {[%clk 0:03:00.9]} 1... c5 {[%clk 0:02:59.5]} 2. Nc3 {[%clk 0:02:59.2]}
2... d6 {[%clk 0:02:59.1]} 3. Bb5+ {[%clk 0:02:58.1]} 3... Nc6 {[%clk 0:03:00]}
4. Bxc6+ {[%clk 0:02:58]} 4... bxc6 {[%clk 0:03:00.9]} 5. f4 {[%clk 0:02:58.5]}
5... g6 {[%clk 0:03:00.9]} 6. Nf3 {[%clk 0:02:58.9]} 6... Bg7 {[%clk 0:03:00.8]}
7. d3 {[%clk 0:02:59.4]} 7... Nf6 {[%clk 0:03:00.7]} 8. O-O {[%clk 0:03:00.3]}
8... Rb8 {[%clk 0:03:00.3]} 9. Qe1 {[%clk 0:03:00.1]} 9... O-O {[%clk
0:02:57.3]} 10. Qh4 {[%clk 0:02:55]} 10... c4 {[%clk 0:02:54.5]} 11. dxc4 {[%clk
0:02:47]} 11... Ba6 {[%clk 0:02:48.1]} 12. e5 {[%clk 0:02:35.9]} 12... Nd7
{[%clk 0:02:42.5]} 13. Rd1 {[%clk 0:02:05.7]} 13... Bxc4 {[%clk 0:02:27.7]} 14.
exd6 {[%clk 0:02:05.5]} 14... Qb6+ {[%clk 0:02:24.8]} 15. Qf2 {[%clk 0:02:01.7]}
15... exd6 {[%clk 0:02:02.5]} 16. Rxd6 {[%clk 0:02:02.6]} 16... Qc7 {[%clk
0:01:57.2]} 17. Rd1 {[%clk 0:01:59.8]} 17... Nb6 {[%clk 0:01:51.7]} 18. Be3
{[%clk 0:01:54.1]} 18... Be6 {[%clk 0:01:47.3]} 19. g3 {[%clk 0:01:39.7]} 19...
Nc4 {[%clk 0:01:45.9]} 20. Bxa7 {[%clk 0:01:38.5]} 20... Rxb2 {[%clk 0:01:36.9]}
21. Bd4 {[%clk 0:01:32.4]} 21... Bxd4 {[%clk 0:01:22.8]} 22. Nxd4 {[%clk
0:01:33.3]} 22... Bg4 {[%clk 0:01:19.4]} 23. Rdb1 {[%clk 0:01:32.5]} 23... Qb7
{[%clk 0:01:14.8]} 24. Nb3 {[%clk 0:01:28.6]} 24... Rxb1+ {[%clk 0:01:04]} 25.
Rxb1 {[%clk 0:01:29.5]} 25... Qa6 {[%clk 0:00:58.6]} 26. a4 {[%clk 0:01:23.8]}
26... Re8 {[%clk 0:00:56.3]} 27. Re1 {[%clk 0:01:23]} 27... Rd8 {[%clk
0:00:54.1]} 28. Ne4 {[%clk 0:01:22.5]} 28... Kg7 {[%clk 0:00:50.2]} 29. a5
{[%clk 0:01:22.1]} 29... Qb5 {[%clk 0:00:42.3]} 30. Qc5 {[%clk 0:01:21.3]} 30...
Qa4 {[%clk 0:00:34.4]} 31. Ra1 {[%clk 0:01:17.6]} 31... Rd5 {[%clk 0:00:25.6]}
32. Rxa4 {[%clk 0:01:13.6]} 1-0

[Event "Late-Titled-Tuesday-Blitz-July-09-2024"]
[Site "Chess.com"]
[Date "2024.07.09"]
[Round "11"]
[White "stregachess"]
[Black "PawnEatingZombie"]
[Result "1-0"]
[WhiteElo "2110"]
[BlackElo "2252"]
[TimeControl "180+1"]
[EndTime "16:03:38 PDT"]
[Termination "stregachess won by resignation"]

1. d4 {[%clk 0:03:00.9]} 1... e6 {[%clk 0:02:58.8]} 2. Nf3 {[%clk 0:03:00.9]}
2... c5 {[%clk 0:02:58.3]} 3. Bf4 {[%clk 0:02:57]} 3... cxd4 {[%clk 0:02:55.5]}
4. Bxb8 {[%clk 0:02:53.3]} 4... Rxb8 {[%clk 0:02:54.6]} 5. Qxd4 {[%clk
0:02:53.2]} 5... b6 {[%clk 0:02:47.4]} 6. Nc3 {[%clk 0:02:47.5]} 6... Nf6 {[%clk
0:02:42.5]} 7. e4 {[%clk 0:02:46]} 7... Bb7 {[%clk 0:02:31.6]} 8. h3 {[%clk
0:02:38.2]} 8... Be7 {[%clk 0:02:24.4]} 9. Bd3 {[%clk 0:02:32.1]} 9... O-O
{[%clk 0:02:24.2]} 10. Qe3 {[%clk 0:02:30.2]} 10... d6 {[%clk 0:02:22.1]} 11.
O-O {[%clk 0:02:28.8]} 11... Rc8 {[%clk 0:02:22]} 12. Rfe1 {[%clk 0:02:28.9]}
12... a6 {[%clk 0:02:21]} 13. Qe2 {[%clk 0:02:23.6]} 13... b5 {[%clk 0:02:19.5]}
14. e5 {[%clk 0:02:19.2]} 14... dxe5 {[%clk 0:02:19]} 15. Nxe5 {[%clk
0:02:12.6]} 15... Qc7 {[%clk 0:02:16.9]} 16. Ng4 {[%clk 0:02:05.7]} 16... Nxg4
{[%clk 0:01:43.3]} 17. Qxg4 {[%clk 0:02:01.9]} 17... f5 {[%clk 0:01:43.8]} 18.
Qe2 {[%clk 0:01:54.7]} 18... Rf6 {[%clk 0:01:43.5]} 19. Nd1 {[%clk 0:01:44.2]}
19... Bc5 {[%clk 0:01:37.3]} 20. c3 {[%clk 0:01:35.6]} 20... Rg6 {[%clk
0:01:36.6]} 21. Ne3 {[%clk 0:00:54.3]} 21... Bxe3 {[%clk 0:01:28.4]} 22. fxe3
{[%clk 0:00:54.5]} 22... Rxg2+ {[%clk 0:01:26.9]} 23. Qxg2 {[%clk 0:00:54.8]}
23... Bxg2 {[%clk 0:01:27.3]} 24. Kxg2 {[%clk 0:00:55.4]} 24... g6 {[%clk
0:01:19]} 25. Rad1 {[%clk 0:00:54.3]} 25... e5 {[%clk 0:01:17.4]} 26. Bc2 {[%clk
0:00:54.1]} 26... e4 {[%clk 0:01:15.4]} 27. Rd4 {[%clk 0:00:52.1]} 27... Rd8
{[%clk 0:01:11.4]} 28. Red1 {[%clk 0:00:51.4]} 28... Rxd4 {[%clk 0:01:11.4]} 29.
Rxd4 {[%clk 0:00:51.5]} 29... Kg7 {[%clk 0:01:11.3]} 30. Bb3 {[%clk 0:00:48.5]}
30... h5 {[%clk 0:01:10.3]} 31. Be6 {[%clk 0:00:47.6]} 31... h4 {[%clk
0:01:06.2]} 32. Rd7+ {[%clk 0:00:45.1]} 32... Qxd7 {[%clk 0:01:06.6]} 33. Bxd7
{[%clk 0:00:45.4]} 33... Kf6 {[%clk 0:01:07.1]} 34. Bc8 {[%clk 0:00:45.5]} 34...
a5 {[%clk 0:01:05.1]} 35. Bd7 {[%clk 0:00:45.7]} 35... b4 {[%clk 0:01:05.3]} 36.
cxb4 {[%clk 0:00:45.9]} 36... axb4 {[%clk 0:01:05.7]} 37. a3 {[%clk 0:00:46.4]}
37... bxa3 {[%clk 0:01:05.3]} 38. bxa3 {[%clk 0:00:46.7]} 38... Ke5 {[%clk
0:01:05.4]} 39. a4 {[%clk 0:00:47]} 39... Kd6 {[%clk 0:01:06]} 40. Be8 {[%clk
0:00:46.4]} 40... g5 {[%clk 0:01:04.1]} 41. Bg6 {[%clk 0:00:45.2]} 1-0

[Event "Late-Titled-Tuesday-Blitz-July-09-2024"]
[Site "Chess.com"]
[Date "2024.07.09"]
[Round "11"]
[White "Seppppppy"]
[Black "stollenmonster"]
[Result "0-1"]
[WhiteElo "2330"]
[BlackElo "2833"]
[TimeControl "180+1"]
[EndTime "16:03:46 PDT"]
[Termination "stollenmonster won by checkmate"]

1. e4 {[%clk 0:02:58.1]} 1... c5 {[%clk 0:03:00.1]} 2. Nf3 {[%clk 0:02:58.3]}
2... Nf6 {[%clk 0:02:59.4]} 3. Nc3 {[%clk 0:02:56.7]} 3... d5 {[%clk 0:02:59.3]}
4. exd5 {[%clk 0:02:53.6]} 4... Nxd5 {[%clk 0:03:00.2]} 5. Bc4 {[%clk
0:02:53.6]} 5... Nb6 {[%clk 0:02:59.9]} 6. Be2 {[%clk 0:02:47.3]} 6... Nc6
{[%clk 0:02:59.5]} 7. O-O {[%clk 0:02:47.5]} 7... f6 {[%clk 0:02:59.2]} 8. Bb5
{[%clk 0:02:46.7]} 8... e5 {[%clk 0:02:59.8]} 9. Re1 {[%clk 0:02:41.9]} 9... Bd7
{[%clk 0:03:00.3]} 10. d4 {[%clk 0:02:36.6]} 10... Nxd4 {[%clk 0:02:49.9]} 11.
Nxd4 {[%clk 0:02:32.5]} 11... cxd4 {[%clk 0:02:50.8]} 12. Qxd4 {[%clk 0:02:32]}
12... Bxb5 {[%clk 0:02:50.3]} 13. Qxd8+ {[%clk 0:02:32.9]} 13... Rxd8 {[%clk
0:02:49]} 14. Nxb5 {[%clk 0:02:33.8]} 14... a6 {[%clk 0:02:48.7]} 15. Nc3 {[%clk
0:02:29]} 15... Bb4 {[%clk 0:02:49]} 16. a3 {[%clk 0:02:19.8]} 16... Bxc3 {[%clk
0:02:48.6]} 17. bxc3 {[%clk 0:02:20.7]} 17... Nc4 {[%clk 0:02:47.2]} 18. Rb1
{[%clk 0:02:19.8]} 18... b5 {[%clk 0:02:46.1]} 19. a4 {[%clk 0:02:18.6]} 19...
Rd5 {[%clk 0:02:46.5]} 20. axb5 {[%clk 0:02:18.2]} 20... axb5 {[%clk 0:02:46.7]}
21. Be3 {[%clk 0:02:18.7]} 21... Kd7 {[%clk 0:02:40.4]} 22. Rb4 {[%clk
0:02:18.3]} 22... Ra8 {[%clk 0:02:38.6]} 23. Reb1 {[%clk 0:02:16.9]} 23... Kc6
{[%clk 0:02:39]} 24. h3 {[%clk 0:02:12.1]} 24... Ra2 {[%clk 0:02:39.3]} 25. Rc1
{[%clk 0:02:06.6]} 25... f5 {[%clk 0:02:31.1]} 26. g3 {[%clk 0:02:01.3]} 26...
h6 {[%clk 0:02:29.1]} 27. h4 {[%clk 0:01:14.1]} 27... Rd8 {[%clk 0:02:21.2]} 28.
Rcb1 {[%clk 0:01:12.2]} 28... Ra5 {[%clk 0:02:17.5]} 29. h5 {[%clk 0:00:27.7]}
29... Rd5 {[%clk 0:02:13.2]} 30. Rxc4+ {[%clk 0:00:22.9]} 30... bxc4 {[%clk
0:02:12.7]} 31. Rb6+ {[%clk 0:00:23.8]} 31... Kc7 {[%clk 0:02:04.9]} 32. Rg6
{[%clk 0:00:23.6]} 32... Ra1+ {[%clk 0:01:50.4]} 33. Kg2 {[%clk 0:00:23.8]}
33... Rd7 {[%clk 0:01:50.6]} 34. f4 {[%clk 0:00:22]} 34... e4 {[%clk 0:01:49.5]}
35. Bd4 {[%clk 0:00:22.1]} 35... Rc1 {[%clk 0:01:44.2]} 36. Bxg7 {[%clk
0:00:18.8]} 36... Rxc2+ {[%clk 0:01:44.7]} 37. Kh3 {[%clk 0:00:19.3]} 37... Rdd2
{[%clk 0:01:40.1]} 38. Be5+ {[%clk 0:00:15.6]} 38... Kd7 {[%clk 0:01:40.2]} 39.
Rg7+ {[%clk 0:00:15]} 39... Kc6 {[%clk 0:01:35.4]} 40. Rg6+ {[%clk 0:00:14.8]}
40... Kb5 {[%clk 0:01:36]} 41. g4 {[%clk 0:00:13.2]} 41... Rh2+ {[%clk
0:01:35.2]} 42. Kg3 {[%clk 0:00:13.4]} 42... Rcg2# {[%clk 0:01:35.9]} 0-1

[Event "Late-Titled-Tuesday-Blitz-July-09-2024"]
[Site "Chess.com"]
[Date "2024.07.09"]
[Round "11"]
[White "Queensandpawns"]
[Black "Michalczak"]
[Result "1-0"]
[WhiteElo "2357"]
[BlackElo "2488"]
[TimeControl "180+1"]
[EndTime "16:04:00 PDT"]
[Termination "Queensandpawns won by resignation"]

1. e4 {[%clk 0:03:00.9]} 1... c5 {[%clk 0:02:57.4]} 2. Nf3 {[%clk 0:02:59.4]}
2... d6 {[%clk 0:02:56.9]} 3. c3 {[%clk 0:02:58.9]} 3... Nf6 {[%clk 0:02:55.3]}
4. h3 {[%clk 0:02:58.7]} 4... Bd7 {[%clk 0:02:51]} 5. Bd3 {[%clk 0:02:58.1]}
5... Bc6 {[%clk 0:02:49.8]} 6. Qe2 {[%clk 0:02:56.7]} 6... e6 {[%clk 0:02:44.9]}
7. O-O {[%clk 0:02:54.4]} 7... Be7 {[%clk 0:02:44.8]} 8. Bc2 {[%clk 0:02:54]}
8... d5 {[%clk 0:02:32.8]} 9. e5 {[%clk 0:02:53]} 9... Nfd7 {[%clk 0:02:32.9]}
10. d4 {[%clk 0:02:53.5]} 10... cxd4 {[%clk 0:02:31.1]} 11. cxd4 {[%clk
0:02:53.7]} 11... a6 {[%clk 0:02:30.5]} 12. Nc3 {[%clk 0:02:53.7]} 12... Qb6
{[%clk 0:02:29.2]} 13. a3 {[%clk 0:02:38]} 13... a5 {[%clk 0:02:20.1]} 14. Rb1
{[%clk 0:02:25.7]} 14... a4 {[%clk 0:02:13.1]} 15. Be3 {[%clk 0:02:24.7]} 15...
O-O {[%clk 0:02:00.1]} 16. Nd2 {[%clk 0:02:23.1]} 16... f5 {[%clk 0:01:49.2]}
17. f4 {[%clk 0:01:58.6]} 17... Rc8 {[%clk 0:01:34]} 18. g4 {[%clk 0:01:58.4]}
18... g6 {[%clk 0:01:33.3]} 19. gxf5 {[%clk 0:01:57.5]} 19... exf5 {[%clk
0:01:29.1]} 20. Kh2 {[%clk 0:01:57.8]} 20... Nf8 {[%clk 0:01:28.7]} 21. Rg1
{[%clk 0:01:56.7]} 21... Kh8 {[%clk 0:01:27.9]} 22. Qg2 {[%clk 0:01:36]} 22...
Qd8 {[%clk 0:01:19.9]} 23. Bxf5 {[%clk 0:01:34.8]} 23... Nbd7 {[%clk 0:01:09.8]}
24. Bd3 {[%clk 0:01:29.6]} 24... Ra5 {[%clk 0:01:00.4]} 25. Rbf1 {[%clk
0:01:23.6]} 25... Qb6 {[%clk 0:00:46.2]} 26. Nf3 {[%clk 0:01:19.5]} 26... Ne6
{[%clk 0:00:42.6]} 27. f5 {[%clk 0:01:13.1]} 27... gxf5 {[%clk 0:00:25.8]} 28.
Bxf5 {[%clk 0:01:14]} 28... Ng5 {[%clk 0:00:07.6]} 29. Nxg5 {[%clk 0:01:02.5]}
1-0